Workbook

Sheet 2 - Grad Rates by Race
B1: Table 2 - Class of 2012 On-time Graduation Rates by Race/Ethnicity
B3: Name of High School | E3: Total Grad Base | F3: Total Grads | G3: Overall Grad Rate | I3: White Grad Base | J3: White Graduates | K3: White Graduation Rate | L3: American Indian Grad Base | M3: American Indian Graduates | N3: American Indian Graduation Rate | O3: Asian Grad Base | P3: Asian Graduates | Q3: Asian Graduation Rate | R3: Black Grad Base | S3: Black Graduates | T3: Black Graduation Rate | U3: Hispanic Grad Base | V3: Hispanic Graduates | W3: Hispanic Graduation Rate | Y3: percentage pt. difference: Am. Indian vs. White | Z3: percentage pt. difference: Asian vs. White | AA3: percentage pt. difference: Black vs. White | AB3: percentage pt. difference: Hispanic vs. White
B4: Overland High School | C4: CB | E4: 514 | F4: 409 | G4: 79.57198444 | I4: =E4-L4-O4-R4-U4 -> 139 | J4: 111 | K4: =(J4/I4)*100 -> 79.85611511 | L4: 4 | M4: 2 | N4: 50 | O4: 31 | P4: 27 | Q4: 87.09677419 | R4: 187 | S4: 153 | T4: 81.81818182 | U4: 153 | V4: 116 | W4: 75.81699346 | Z4: =Q4-K4 -> 7.240659086 | AA4: =T4-K4 -> 1.96206671 | AB4: =W4-K4 -> -4.039121644
B5: Greeley Central High School | C5: CB | E5: 373 | F5: 296 | G5: 79.35656836 | I5: 169 | J5: 139 | K5: 82.24852071 | L5: 1 | M5: 1 | N5: 100 | O5: 3 | P5: 3 | Q5: 100 | R5: 11 | S5: 11 | T5: 100 | U5: 189 | V5: 142 | W5: 75.13227513 | AB5: -7.116245578
B6: John F Kennedy High School | C6: CB | E6: 284 | F6: 223 | G6: 78.52112676 | I6: 71 | J6: 56 | K6: 78.87323944 | L6: 5 | M6: 4 | N6: 80 | O6: 18 | P6: 17 | Q6: 94.44444444 | R6: 11 | S6: 6 | T6: 54.54545455 | U6: 179 | V6: 140 | W6: 78.2122905 | Z6: =Q6-K6 -> 15.57120501 | AB6: -0.6609489338
B7: Northridge High School | C7: CB | E7: 237 | F7: 186 | G7: 78.48101266 | I7: 82 | J7: 67 | K7: 81.70731707 | L7: 1 | M7: 1 | N7: 100 | O7: 0 | P7: 0 | Q7: 0 | R7: 3 | S7: 2 | T7: 66.66666667 | U7: 151 | V7: 116 | W7: 76.82119205 | AB7: -4.88612502
B8: Mapleton Expeditionary | C8: SC | E8: 65 | F8: 51 | G8: 78.46153846 | I8: 26 | J8: 19 | K8: 73.07692308 | L8: 1 | M8: 1 | N8: 100 | O8: 1 | P8: 1 | Q8: 100 | R8: 3 | S8: 1 | T8: 33.33333333 | U8: 34 | V8: 29 | W8: 85.29411765 | AB8: 12.21719457
B9: Thornton High School | C9: SC | E9: 412 | F9: 320 | G9: 77.66990291 | I9: 126 | J9: 101 | K9: 80.15873016 | L9: 1 | M9: 0 | N9: 0 | O9: 36 | P9: 33 | Q9: 91.66666667 | R9: 9 | S9: 8 | T9: 88.88888889 | U9: 240 | V9: 178 | W9: 74.16666667 | Z9: =Q9-K9 -> 11.50793651 | AB9: -5.992063492
B10: Fort Lupton High School | C10: CB | E10: 157 | F10: 118 | G10: 75.15923567 | I10: 58 | J10: 43 | K10: 74.13793103 | L10: 2 | M10: 2 | N10: 100 | O10: 1 | P10: 1 | Q10: 100 | R10: 1 | S10: 0 | T10: 0 | U10: 95 | V10: 72 | W10: 75.78947368 | AB10: 1.65154265
B11: Northglenn High School | C11: SC | E11: 384 | F11: 282 | G11: 73.4375 | I11: 152 | J11: 111 | K11: 73.02631579 | L11: 8 | M11: 6 | N11: 75 | O11: 17 | P11: 15 | Q11: 88.23529412 | R11: 11 | S11: 7 | T11: 63.63636364 | U11: 196 | V11: 143 | W11: 72.95918367 | Z11: =Q11-K11 -> 15.20897833 | AB11: -0.067132116
B12: Rangeview High School | C12: SC | E12: 593 | F12: 430 | G12: 72.51264755 | I12: 241 | J12: 186 | K12: 77.17842324 | L12: 3 | M12: 2 | N12: 66.66666667 | O12: 36 | P12: 31 | Q12: 86.11111111 | R12: 129 | S12: 91 | T12: 70.54263566 | U12: 184 | V12: 120 | W12: 65.2173913 | Z12: =Q12-K12 -> 8.932687875 | AA12: =T12-K12 -> -6.635787578 | AB12: -11.96103193
B13: Skyview Academy High School | C13: CB | E13: 69 | F13: 50 | G13: 72.46376812 | I13: 20 | J13: 14 | K13: 70 | L13: 0 | M13: 0 | N13: 0 | O13: 2 | P13: 2 | Q13: 100 | R13: 0 | S13: 0 | T13: 0 | U13: 47 | V13: 34 | W13: 72.34042553 | AB13: 2.340425532
B14: Wasson High School | C14: SC | E14: 217 | F14: 157 | G14: 72.35023041 | I14: 113 | J14: 84 | K14: 74.33628319 | L14: 4 | M14: 3 | N14: 75 | O14: 11 | P14: 4 | Q14: 36.36363636 | R14: 22 | S14: 20 | T14: 90.90909091 | U14: 67 | V14: 46 | W14: 68.65671642 | AA14: =T14-K14 -> 16.57280772 | AB14: -5.679566768
B15: Adams City High School | C15: SC | E15: 385 | F15: 272 | G15: 70.64935065 | I15: 56 | J15: 42 | K15: 75 | L15: 3 | M15: 2 | N15: 66.66666667 | O15: 3 | P15: 2 | Q15: 66.66666667 | R15: 9 | S15: 8 | T15: 88.88888889 | U15: 314 | V15: 218 | W15: 69.42675159 | AB15: -5.573248408
B16: Jefferson High School | C16: SC | E16: 114 | F16: 80 | G16: 70.1754386 | I16: 17 | J16: 8 | K16: 47.05882353 | L16: 1 | M16: 0 | N16: 0 | O16: 0 | P16: 0 | Q16: 0 | R16: 4 | S16: 2 | T16: 50 | U16: 92 | V16: 70 | W16: 76.08695652 | AB16: 29.02813299
B17: East High School | C17: SC | E17: 219 | F17: 150 | G17: 68.49315068 | I17: 67 | J17: 51 | K17: 76.11940299 | L17: 3 | M17: 1 | N17: 33.33333333 | O17: 0 | P17: 0 | Q17: 0 | R17: 5 | S17: 2 | T17: 40 | U17: 144 | V17: 96 | W17: 66.66666667 | AA17: =T17-K17 -> -36.11940299 | AB17: -9.452736318
B18: Montezuma-Cortez High School | C18: SC | E18: 157 | F18: 103 | G18: 65.60509554 | I18: 96 | J18: 71 | K18: 73.95833333 | L18: 31 | M18: 11 | N18: 35.48387097 | O18: 1 | P18: 1 | Q18: 100 | R18: 1 | S18: 1 | T18: 100 | U18: 28 | V18: 19 | W18: 67.85714286 | Y18: =N18-K18 -> -38.47446237 | AA18: =T18-K18 -> 26.04166667 | AB18: -6.101190476
B19: West High School | C19: SC | E19: 189 | F19: 117 | G19: 61.9047619 | I19: 14 | J19: 7 | K19: 50 | L19: 3 | M19: 2 | N19: 66.66666667 | O19: 0 | P19: 0 | Q19: 0 | R19: 9 | S19: 4 | T19: 44.44444444 | U19: 163 | V19: 104 | W19: 63.80368098
B20: AVG - ALL SYSTEMS CHANGE | C20: SC | E20: 4648 | F20: 2814 | G20: 60.54216867 | I20: 1314 | J20: 882 | K20: 67.12328767 | L20: 84 | M20: 34 | N20: 40.47619048 | O20: 215 | P20: 140 | Q20: 65.11627907 | R20: 533 | S20: 321 | T20: 60.22514071 | U20: 2502 | V20: 1437 | W20: 57.43405276 | Y20: =N20-G20 -> -20.0659782 | Z20: =Q20-K20 -> -2.007008601 | AA20: =T20-K20 -> -6.898146958 | AB20: =W20-K20 -> -9.689234913
B21: Gateway High School | C21: SC | E21: 441 | F21: 252 | G21: 57.14285714 | I21: 116 | J21: 80 | K21: 68.96551724 | L21: 6 | M21: 2 | N21: 33.33333333 | O21: 23 | P21: 18 | Q21: 78.26086957 | R21: 121 | S21: 68 | T21: 56.19834711 | U21: 175 | V21: 84 | W21: 48 | Z21: =Q21-K21 -> 9.295352324 | AA21: =T21-K21 -> -12.76717013 | AB21: -20.96551724
B22: Hinkley High School | C22: SC | E22: 552 | F22: 311 | G22: 56.34057971 | I22: 103 | J22: 67 | K22: 65.04854369 | L22: 4 | M22: 2 | N22: 50 | O22: 32 | P22: 17 | Q22: 53.125 | R22: 106 | S22: 69 | T22: 65.09433962 | U22: 307 | V22: 156 | W22: 50.81433225 | Z22: =Q22-K22 -> -11.92354369 | AA22: =T22-K22 -> 0.04579593332 | AB22: -14.23421144
B23: AVG - ALL CAPACITY BUILDING | C23: CB | E23: 3472 | F23: 1680 | G23: 48.38709677 | I23: 1433 | J23: 673 | K23: 46.96441033 | L23: 40 | M23: 12 | N23: 30 | O23: 109 | P23: 61 | Q23: 55.96330275 | R23: 304 | S23: 184 | T23: 60.52631579 | U23: 1586 | V23: 750 | W23: 47.2887768 | Y23: =N23-G23 -> -18.38709677 | Z23: =Q23-K23 -> 8.998892424 | AA23: =T23-K23 -> 13.56190546 | AB23: 0.324366469
B24: Aurora Central High School | C24: SC | E24: 616 | F24: 224 | G24: 36.36363636 | I24: =E24-L24-O24-R24-U24 -> 50 | J24: 23 | K24: =(J24/I24)*100 -> 46 | L24: 5 | M24: 1 | N24: 20 | O24: 53 | P24: 18 | Q24: 33.96226415 | R24: 100 | S24: 40 | T24: 40 | U24: 408 | V24: 142 | W24: 34.80392157 | Z24: =Q24-K24 -> -12.03773585 | AA24: =T24-K24 -> -6 | AB24: -11.19607843
B25: Vantage Point | C25: CB | E25: 248 | F25: 77 | G25: 31.0483871 | I25: 133 | J25: 42 | K25: 31.57894737 | L25: 4 | M25: 1 | N25: 25 | O25: 6 | P25: 4 | Q25: 66.66666667 | R25: 6 | S25: 3 | T25: 50 | U25: 99 | V25: 27 | W25: 27.27272727 | AB25: -4.306220096
B26: Hidden Lake High School | C26: CB | E26: 112 | F26: 34 | G26: 30.35714286 | I26: 29 | J26: 10 | K26: 34.48275862 | L26: 2 | M26: 1 | N26: 50 | O26: 4 | P26: 2 | Q26: 50 | R26: 3 | S26: 0 | T26: 0 | U26: 74 | V26: 21 | W26: 28.37837838 | AB26: -6.104380242
B27: Mc Lain High School | C27: CB | E27: 224 | F27: 67 | G27: 29.91071429 | I27: 167 | J27: 55 | K27: 32.93413174 | L27: 4 | M27: 0 | N27: 0 | O27: 1 | P27: 0 | Q27: 0 | R27: 3 | S27: 1 | T27: 33.33333333 | U27: 49 | V27: 11 | W27: 22.44897959 | AB27: -10.48515214
B28: R-5 High School | C28: CB | E28: 159 | F28: 47 | G28: 29.55974843 | I28: 116 | J28: 37 | K28: 31.89655172 | L28: 4 | M28: 0 | N28: 0 | O28: 0 | P28: 0 | Q28: 0 | R28: 0 | S28: 0 | T28: 0 | U28: 39 | V28: 10 | W28: 25.64102564 | AB28: -6.255526083
B29: Brady Exploration School | C29: SC | E29: 144 | F29: 38 | G29: 26.38888889 | I29: 56 | J29: 20 | K29: 35.71428571 | L29: 7 | M29: 1 | N29: 14.28571429 | O29: 0 | P29: 0 | Q29: 0 | R29: 3 | S29: 0 | T29: 0 | U29: 78 | V29: 17 | W29: 21.79487179 | AB29: -13.91941392
B30: Colorado Virtual Academy | C30: CB | E30: 470 | F30: 101 | G30: 21.4893617 | I30: 357 | J30: 84 | K30: 23.52941176 | L30: 9 | M30: 0 | N30: 0 | O30: 4 | P30: 1 | Q30: 25 | R30: 28 | S30: 5 | T30: 17.85714286 | U30: 72 | V30: 11 | W30: 15.27777778 | AB30: -8.251633987
B31: New America - Mapleton | C31: CB | E31: 174 | F31: 33 | G31: 18.96551724 | I31: 7 | J31: 1 | K31: 14.28571429 | L31: 1 | M31: 0 | N31: 0 | O31: 2 | P31: 0 | Q31: 0 | R31: 0 | S31: 0 | T31: 0 | U31: 164 | V31: 32 | W31: 19.51219512
B32: Colorado's Finest Alt. HS | C32: SC | E32: 160 | F32: 27 | G32: 16.875 | I32: 81 | J32: 12 | K32: 14.81481481 | L32: 4 | M32: 0 | N32: 0 | O32: 2 | P32: 0 | Q32: 0 | R32: 1 | S32: 0 | T32: 0 | U32: 72 | V32: 15 | W32: 20.83333333 | AB32: =W32-K32 -> 6.018518519
B33: Grand Mesa High School | C33: CB | E33: 117 | F33: 13 | G33: 11.11111111 | I33: 66 | J33: 9 | K33: 13.63636364 | L33: 3 | M33: 0 | N33: 0 | O33: 0 | P33: 0 | Q33: 0 | R33: 15 | S33: 2 | T33: 13.33333333 | U33: 33 | V33: 2 | W33: 6.060606061 | AB33: =W33-K33 -> -7.575757576
B34: New America - Aurora | C34: CB | E34: 334 | F34: 26 | G34: 7.784431138 | I34: 19 | J34: 5 | K34: 26.31578947 | L34: 0 | M34: 0 | N34: 0 | O34: 37 | P34: 4 | Q34: 10.81081081 | R34: 36 | S34: 1 | T34: 2.777777778 | U34: 242 | V34: 16 | W34: 6.611570248 | Z34: =Q34-K34 -> -15.50497866 | AA34: =T34-K34 -> -23.5380117 | AB34: =W34-K34 -> -19.70421923
B36: Grand Total - All CGP schools | E36: 8120 | F36: 4494 | G36: 55.34482759 | I36: 2747 | J36: 1555 | K36: 56.60720786 | L36: 124 | M36: 46 | N36: 37.09677419 | O36: 324 | P36: 201 | Q36: 62.03703704 | R36: 837 | S36: 505 | T36: 60.33452808 | U36: 4088 | V36: 2187 | W36: 53.49804305 | Y36: =N36-K36 -> -19.51043367 | Z36: =Q36-K36 -> 5.429829174 | AA36: =T36-K36 -> 3.727320213 | AB36: =W36-K36 -> -3.10916481
B38: Totals - All Non-CGP Schools | E38: 52765 | F38: 41385 | G38: 78.4 | I38: =E38-L38-O38-R38-U38 -> 35020 | J38: =F38-M38-P38-S38-V38 -> 29418 | K38: =(J38/I38)*100 -> 84.00342661 | L38: 549 | M38: 342 | N38: 62.3 | O38: 1529 | P38: 1335 | Q38: 87.3 | R38: 2426 | S38: 1655 | T38: 68.2 | U38: 13241 | V38: 8635 | W38: 65.2 | Y38: =N38-K38 -> -21.70342661 | Z38: =Q38-K38 -> 3.296573387 | AA38: =T38-K38 -> -15.80342661 | AB38: =W38-K38 -> -18.80342661
B41: Westminster High School * | C41: CB | E41: 462 | F41: 317 | G41: 68.61471861 | I41: =E41-L41-O41-R41-U41 -> 118 | J41: =F41-M41-P41-S41-V41 -> 80 | K41: =(J41/I41)*100 -> 67.79661017 | L41: 8 | M41: 7 | N41: 87.5 | O41: 44 | P41: 33 | Q41: 75 | R41: 10 | S41: 7 | T41: 70 | U41: 282 | V41: 190 | W41: 67.37588652 | Z41: =Q41-K41 -> 7.203389831 | AB41: =W41-K41 -> -0.4207236447
B42: Fort Morgan High School * | C42: CB | E42: 233 | F42: 165 | G42: 70.81545064 | I42: =E42-L42-O42-R42-U42 -> 89 | J42: =F42-M42-P42-S42-V42 -> 80 | K42: =(J42/I42)*100 -> 89.88764045 | L42: 4 | M42: 2 | N42: 50 | O42: 2 | P42: 0 | Q42: 0 | R42: 12 | S42: 2 | T42: 16.66666667 | U42: 126 | V42: 81 | W42: 64.28571429 | AB42: =W42-K42 -> -25.60192616
AF43: =AF42-K42 -> -89.88764045
B45: * schools not added to CGP cohort until year 2 of the 5-year grant

Sheet 2a - Grad Rates by Race Y2Y
B1: Table 2a - Graduation Rates by Race/Ethnicity - 2010-11 vs 2011-12
E3: All Students | I3: American Indian | M3: Asian | Q3: Black | U3: Hispanic
B4: Name of High School | C4: Site Type | E4: Class of '11 Grad. Rate | F4: Class of '12 Grad Rate | G4: Percentage Point Change - '11 to '12 | I4: Class of '11 Grad. Rate | J4: Class of '12 Grad Rate | K4: Percentage Point Change - '11 to '12 | M4: Class of '11 Grad. Rate | N4: Class of '12 Grad Rate | O4: Percentage Point Change - '11 to '12 | Q4: Class of '11 Grad. Rate | R4: Class of '12 Grad Rate | S4: Percentage Point Change - '11 to '12 | U4: Class of '11 Grad. Rate | V4: Class of '12 Grad Rate | W4: Percentage Point Change - '11 to '12
B6: Mapleton Expeditionary | C6: SC | E6: 61.7 | F6: 78.46153846 | G6: =F6-E6 -> 16.76153846 | I6: 0 | J6: 100 | K6: =J6-I6 -> 100 | M6: 0 | N6: 100 | O6: =N6-M6 -> 100 | Q6: 0 | R6: 33.33333333 | S6: =R6-Q6 -> 33.33333333 | U6: 67.3 | V6: 85.29411765 | W6: =V6-U6 -> 17.99411765
B7: Wasson High School | C7: SC | E7: 58.3 | F7: 72.35023041 | G7: 14.05023041 | I7: 25 | J7: 75 | K7: 50 | M7: 40 | N7: 36.36363636 | O7: -3.636363636 | Q7: 40 | R7: 90.90909091 | S7: 50.90909091 | U7: 54.5 | V7: 68.65671642 | W7: 14.15671642
B8: Brady Exploration School | C8: SC | E8: 17 | F8: 26.38888889 | G8: 9.388888889 | I8: 0 | J8: 14.28571429 | K8: 14.28571429 | M8: 0 | N8: 0 | O8: 0 | Q8: 0 | R8: 0 | S8: 0 | U8: 18.3 | V8: 21.79487179 | W8: 3.494871795
B9: West High School | C9: SC | E9: 53 | F9: 61.9047619 | G9: 8.904761905 | I9: 60 | J9: 66.66666667 | K9: 6.666666667 | M9: 33.3 | N9: 0 | O9: -33.3 | Q9: 42.9 | R9: 44.44444444 | S9: 1.544444444 | U9: 52.7 | V9: 63.80368098 | W9: 11.10368098
B10: Thornton High School | C10: SC | E10: 68.9 | F10: 77.66990291 | G10: 8.769902913 | I10: 75 | J10: 0 | K10: -75 | M10: 96.7 | N10: 91.66666667 | O10: -5.033333333 | Q10: 58.3 | R10: 88.88888889 | S10: 30.58888889 | U10: 65.7 | V10: 74.16666667 | W10: 8.466666667
B11: Jefferson High School | C11: SC | E11: 62.1 | F11: 70.1754386 | G11: 8.075438596 | I11: 50 | J11: 0 | K11: -50 | M11: 50 | N11: 0 | O11: -50 | Q11: 62.5 | R11: 50 | S11: -12.5 | U11: 61.6 | V11: 76.08695652 | W11: 14.48695652
B12: Rangeview High School | C12: SC | E12: 67.9 | F12: 72.51264755 | G12: 4.612647555 | I12: 50 | J12: 66.66666667 | K12: 16.66666667 | M12: 78.9 | N12: 86.11111111 | O12: 7.211111111 | Q12: 69 | R12: 70.54263566 | S12: 1.542635659 | U12: 60.1 | V12: 65.2173913 | W12: 5.117391304
B13: Adams City High School | C13: SC | E13: 68 | F13: 70.64935065 | G13: 2.649350649 | I13: 60 | J13: 66.66666667 | K13: 6.666666667 | M13: 100 | N13: 66.66666667 | O13: -33.33333333 | Q13: 76.9 | R13: 88.88888889 | S13: 11.98888889 | U13: 67.1 | V13: 69.42675159 | W13: 2.326751592
B14: Gateway High School | C14: SC | E14: 56.1 | F14: 57.14285714 | G14: 1.042857143 | I14: 50 | J14: 33.33333333 | K14: -16.66666667 | M14: 69.6 | N14: 78.26086957 | O14: 8.660869565 | Q14: 55.1 | R14: 56.19834711 | S14: 1.098347107 | U14: 49.3 | V14: 48 | W14: -1.3
B15: Northglenn High School | C15: SC | E15: 74.7 | F15: 73.4375 | G15: -1.2625 | I15: 100 | J15: 75 | K15: -25 | M15: 70.8 | N15: 88.23529412 | O15: 17.43529412 | Q15: 81.3 | R15: 63.63636364 | S15: -17.66363636 | U15: 69.2 | V15: 72.95918367 | W15: 3.759183673
B16: Montezuma-Cortez High School | C16: SC | E16: 67.3 | F16: 65.60509554 | G16: -1.694904459 | I16: 47.5 | J16: 35.48387097 | K16: -12.01612903 | M16: 100 | N16: 100 | O16: 0 | Q16: 0 | R16: 100 | S16: 100 | U16: 66.7 | V16: 67.85714286 | W16: 1.157142857
B17: Hinkley High School | C17: SC | E17: 58.5 | F17: 56.34057971 | G17: -2.15942029 | I17: 66.7 | J17: 50 | K17: -16.7 | M17: 65.5 | N17: 53.125 | O17: -12.375 | Q17: 67.6 | R17: 65.09433962 | S17: -2.505660377 | U17: 49.8 | V17: 50.81433225 | W17: 1.014332248
B18: Colorado's Finest Alt. HS | C18: SC | E18: 20.4 | F18: 16.875 | G18: -3.525 | I18: 0 | J18: 0 | K18: 0 | M18: 0 | N18: 0 | O18: 0 | Q18: 23.1 | R18: 0 | S18: -23.1 | U18: 17.1 | V18: 20.83333333 | W18: 3.733333333
B19: East High School | C19: SC | E19: 73.1 | F19: 68.49315068 | G19: -4.606849315 | I19: 0 | J19: 33.33333333 | K19: 33.33333333 | M19: 100 | N19: 0 | O19: -100 | Q19: 83.3 | R19: 40 | S19: -43.3 | U19: 69.7 | V19: 66.66666667 | W19: -3.033333333
B20: Aurora Central High School | C20: SC | E20: 43 | F20: 36.36363636 | G20: -6.636363636 | I20: 33.3 | J20: 20 | K20: -13.3 | M20: 19.4 | N20: 33.96226415 | O20: 14.56226415 | Q20: 50.8 | R20: 40 | S20: -10.8 | U20: 41.3 | V20: 34.80392157 | W20: -6.496078431
B22: TOTALS - SYSTEMS CHANGE | E22: 58.70362821 | F22: 60.54216867 | G22: =F22-E22 -> 1.838540464 | I22: 44.95412844 | J22: 40.47619048 | K22: =J22-I22 -> -4.477937964 | M22: 63.7254902 | N22: 65.11627907 | O22: =N22-M22 -> 1.390788874 | Q22: 60.39279869 | R22: 60.22514071 | S22: =R22-Q22 -> -0.1676579777 | U22: 54.79018211 | V22: 57.43405276 | W22: =V22-U22 -> 2.643870652
B24: Vantage Point | C24: CB | E24: 22.1 | F24: 31.0483871 | G24: =F24-E24 -> 8.948387097 | I24: 0 | J24: 25 | K24: =J24-I24 -> 25 | M24: 0 | N24: 66.66666667 | O24: =N24-M24 -> 66.66666667 | Q24: 30 | R24: 50 | S24: =R24-Q24 -> 20 | U24: 16.5 | V24: 27.27272727 | W24: =V24-U24 -> 10.77272727
B25: Northridge High School | C25: CB | E25: 73.2 | F25: 78.48101266 | G25: 5.281012658 | I25: 0 | J25: 100 | K25: 100 | M25: 0 | N25: 0 | O25: 0 | Q25: 83.3 | R25: 66.66666667 | S25: -16.63333333 | U25: 66.8 | V25: 76.82119205 | W25: 10.02119205
B26: Greeley Central High School | C26: CB | E26: 74.4 | F26: 79.35656836 | G26: 4.956568365 | I26: 0 | J26: 100 | K26: 100 | M26: 50 | N26: 100 | O26: 50 | Q26: 66.7 | R26: 100 | S26: 33.3 | U26: 71 | V26: 75.13227513 | W26: 4.132275132
B27: R-5 High School | C27: CB | E27: 27.3 | F27: 29.55974843 | G27: 2.259748428 | I27: 0 | J27: 0 | K27: 0 | M27: 0 | N27: 0 | O27: 0 | Q27: 33.3 | R27: 0 | S27: -33.3 | U27: 39.3 | V27: 25.64102564 | W27: -13.65897436
B28: Fort Lupton High School | C28: CB | E28: 74 | F28: 75.15923567 | G28: 1.159235669 | I28: 50 | J28: 100 | K28: 50 | M28: 100 | N28: 100 | O28: 0 | Q28: 100 | R28: 0 | S28: -100 | U28: 71.7 | V28: 75.78947368 | W28: 4.089473684
B29: John F Kennedy High School | C29: CB | E29: 77.4 | F29: 78.52112676 | G29: 1.121126761 | I29: 100 | J29: 80 | K29: -20 | M29: 85 | N29: 94.44444444 | O29: 9.444444444 | Q29: 40 | R29: 54.54545455 | S29: 14.54545455 | U29: 78.1 | V29: 78.2122905 | W29: 0.1122905028
B30: New America - Aurora | C30: CB | E30: 6.8 | F30: 7.784431138 | G30: 0.9844311377 | I30: 0 | J30: 0 | K30: 0 | M30: 10 | N30: 10.81081081 | O30: 0.8108108108 | Q30: 10 | R30: 2.777777778 | S30: -7.222222222 | U30: 5.8 | V30: 6.611570248 | W30: 0.8115702479
B31: Overland High School | C31: CB | E31: 78.6 | F31: 79.57198444 | G31: 0.9719844358 | I31: 80 | J31: 50 | K31: -30 | M31: 81 | N31: 87.09677419 | O31: 6.096774194 | Q31: 88.1 | R31: 81.81818182 | S31: -6.281818182 | U31: 65.5 | V31: 75.81699346 | W31: 10.31699346
B32: New America - Mapleton | C32: CB | E32: 18.6 | F32: 18.96551724 | G32: 0.3655172414 | I32: 0 | J32: 0 | K32: 0 | M32: 0 | N32: 0 | O32: 0 | Q32: 0 | R32: 0 | S32: 0 | U32: 18.5 | V32: 19.51219512 | W32: 1.012195122
B33: Hidden Lake High School | C33: CB | E33: 30 | F33: 30.35714286 | G33: 0.3571428571 | I33: 0 | J33: 50 | K33: 50 | M33: 0 | N33: 50 | O33: 50 | Q33: 0 | R33: 0 | S33: 0 | U33: 27.8 | V33: 28.37837838 | W33: 0.5783783784
B34: Colorado Virtual Academy | C34: CB | E34: 21.6 | F34: 21.4893617 | G34: -0.1106382979 | I34: 16.7 | J34: 0 | K34: -16.7 | M34: 0 | N34: 25 | O34: 25 | Q34: 30 | R34: 17.85714286 | S34: -12.14285714 | U34: 20.6 | V34: 15.27777778 | W34: -5.322222222
B35: Mc Lain High School | C35: CB | E35: 31.4 | F35: 29.91071429 | G35: -1.489285714 | I35: 100 | J35: 0 | K35: -100 | M35: 0 | N35: 0 | O35: 0 | Q35: 75 | R35: 33.33333333 | S35: -41.66666667 | U35: 25 | V35: 22.44897959 | W35: -2.551020408
B36: Skyview Academy High School | C36: CB | E36: 75 | F36: 72.46376812 | G36: -2.536231884 | I36: 100 | J36: 0 | K36: -100 | M36: 83.3 | N36: 100 | O36: 16.7 | Q36: 50 | R36: 0 | S36: -50 | U36: 77.8 | V36: 72.34042553 | W36: -5.459574468
B37: Grand Mesa High School | C37: CB | E37: 17.9 | F37: 11.11111111 | G37: -6.788888889 | I37: 0 | J37: 0 | K37: 0 | M37: 0 | N37: 0 | O37: 0 | Q37: 16.7 | R37: 13.33333333 | S37: -3.366666667 | U37: 17.1 | V37: 6.060606061 | W37: -11.03939394
B39: TOTALS - CAPACITY BUILDING | E39: 47.4 | F39: 48.4 | G39: 1 | I39: 34.5 | J39: 30 | K39: -4.5 | M39: 49.5 | N39: 56 | O39: 6.5 | Q39: 68.6 | R39: 60.5 | S39: -8.1 | U39: 45.2 | V39: 47.3 | W39: 2.1
B41: Grand Total - All CGP schools | E41: 54 | F41: 55.3 | G41: 1.3 | I41: 42.8 | J41: 37.1 | K41: -5.7 | M41: 59.3 | N41: 62 | O41: 2.7 | Q41: 63 | R41: 60.3 | S41: -2.7 | U41: 51 | V41: 53.5 | W41: 2.5
B43: Totals - All Non-CGP Schools | E43: 77 | F43: 78.4 | G43: 1.4 | I43: 54.5 | J43: 62.3 | K43: 7.8 | M43: 86.6 | N43: 87.3 | O43: 0.7 | Q43: 65.2 | R43: 68.2 | S43: 3 | U43: 62.9 | V43: 65.2 | W43: 2.3
B47: Schools added to the CGP cohort in year 2 (2011-12 is the baseline year for these schools)
B48: Fort Morgan High School * | C48: CB | E48: 69.4 | F48: 70.81545064 | G48: =F48-E48 -> 1.415450644 | I48: 100 | J48: 50 | K48: =J48-I48 -> -50 | M48: 0 | N48: 0 | O48: =N48-M48 -> 0 | Q48: 50 | R48: 16.66666667 | S48: =R48-Q48 -> -33.33333333 | U48: 59.3 | V48: 64.28571429 | W48: =V48-U48 -> 4.985714286
B49: Westminster High School * | C49: CB | E49: 72.4 | F49: 68.61471861 | G49: =F49-E49 -> -3.785281385 | I49: 75 | J49: 87.5 | K49: =J49-I49 -> 12.5 | M49: 77.3 | N49: 75 | O49: =N49-M49 -> -2.3 | Q49: 44.4 | R49: 70 | S49: =R49-Q49 -> 25.6 | U49: 70.1 | V49: 67.37588652 | W49: =V49-U49 -> -2.724113475
B51: * schools not added to CGP cohort until year 2 of the 5-year grant

Sheet 3 - Grad Rates by IPST
B1: Table 3 - 2010-11 Graduation Rates by Select Instructional Program Types
B3: Name of High School | D3: Class of 2012 Total Grad Base | E3: Class of 2012 Total On-Time Graduatess | F3: Class of 2012 Overall On-Time Graduation Rate | H3: Class of 2012 Students with Disabilities Final Grad Base | I3: Class of 2012 Students with Disabilities Total On-time Graduates | J3: Class of 2012 Students with Disabilities On-time Graduation Rate | K3: Percentage Point Difference b/t Students w/ Disabilities and All Students | L3: Class of 2012 Limited English Proficient Final Grad Base | M3: Class of 2012 Limited English Proficient Total On-Time Graduates | N3: Class of 2012 Limited English Proficient On-Time Graduation Rate | O3: Percentage Point Difference b/t English Language Learners and All Students | P3: Class of 2012 Econ. Disadvant. Final Grad Base | Q3: Class of 2012 Econ. Disadvant. Total On-time Graduates | R3: Class of 2012 Econ. Disadvant. On-time Graduation Rate | S3: Percentage Point Difference b/t Econ. Disadvantaged and All Students
B4: Vantage Point | C4: CB | D4: 248 | E4: 77 | F4: 0.310483871 | H4: 27 | I4: 9 | J4: 0.3333333333 | K4: 2.284946237 | L4: 33 | M4: 12 | N4: 0.3636363636 | O4: 5.315249267 | P4: 149 | Q4: 42 | R4: 0.2818791946 | S4: -2.860467634
B5: Brady Exploration School | C5: SC | D5: 144 | E5: 38 | F5: 0.2638888889 | H5: 18 | I5: 5 | J5: 0.2777777778 | K5: 1.388888889 | L5: 26 | M5: 4 | N5: 0.1538461538 | O5: -11.0042735 | P5: 118 | Q5: 26 | R5: 0.2203389831 | S5: -4.354990584
B6: Grand Mesa High School | C6: CB | D6: 117 | E6: 13 | F6: 0.1111111111 | H6: 20 | I6: 2 | J6: 0.1 | K6: -1.111111111 | L6: 5 | M6: 0 | N6: 0 | O6: -11.11111111 | P6: 56 | Q6: 8 | R6: 0.1428571429 | S6: 3.174603175
B7: Mc Lain High School | C7: CB | D7: 224 | E7: 67 | F7: 0.2991071429 | H7: 26 | I7: 7 | J7: 0.2692307692 | K7: -2.987637363 | L7: 11 | M7: 1 | N7: 0.09090909091 | O7: -20.81980519 | P7: 117 | Q7: 29 | R7: 0.2478632479 | S7: -5.124389499
B8: Montezuma-Cortez High School | C8: SC | D8: 157 | E8: 103 | F8: 0.6560509554 | H8: 16 | I8: 10 | J8: 0.625 | K8: -3.105095541 | L8: 34 | M8: 14 | N8: 0.4117647059 | O8: -24.42862495 | P8: 89 | Q8: 52 | R8: 0.5842696629 | S8: -7.178129249
B9: R-5 High School | C9: CB | D9: 159 | E9: 47 | F9: 0.2955974843 | H9: 21 | I9: 5 | J9: 0.2380952381 | K9: -5.750224618 | L9: 13 | M9: 4 | N9: 0.3076923077 | O9: 1.209482342 | P9: 77 | Q9: 22 | R9: 0.2857142857 | S9: -0.9883198562
B10: Skyview Academy High School | C10: CB | D10: 69 | E10: 50 | F10: 0.7246376812 | H10: 3 | I10: 2 | J10: 0.6666666667 | K10: -5.797101449 | L10: 22 | M10: 14 | N10: 0.6363636364 | O10: -8.82740448 | P10: 56 | Q10: 40 | R10: 0.7142857143 | S10: -1.035196687
B11: Colorado Virtual Academy | C11: CB | D11: 470 | E11: 101 | F11: 0.214893617 | H11: 58 | I11: 8 | J11: 0.1379310345 | K11: -7.696258254 | L11: 17 | M11: 1 | N11: 0.05882352941 | O11: -15.60700876 | P11: 204 | Q11: 30 | R11: 0.1470588235 | S11: -6.783479349
B12: New America School - Aurora | C12: CB | D12: 334 | E12: 26 | F12: 0.07784431138 | H12: 9 | I12: 0 | J12: 0 | K12: -7.784431138 | L12: 281 | M12: 19 | N12: 0.06761565836 | O12: -1.022865301 | P12: 251 | Q12: 20 | R12: 0.0796812749 | S12: 0.1836963523
B13: Colorado's Finest Alt. High School | C13: SC | D13: 160 | E13: 27 | F13: 0.16875 | H13: 14 | I13: 1 | J13: 0.07142857143 | K13: -9.732142857 | L13: 4 | M13: 1 | N13: 0.25 | O13: 8.125 | P13: 102 | Q13: 16 | R13: 0.1568627451 | S13: -1.18872549
B14: New America School - Mapleton | C14: CB | D14: 174 | E14: 33 | F14: 0.1896551724 | H14: 12 | I14: 1 | J14: 0.08333333333 | K14: -10.63218391 | L14: 134 | M14: 24 | N14: 0.1791044776 | O14: -1.05506948 | P14: 149 | Q14: 27 | R14: 0.1812080537 | S14: -0.8447118723
B15: AVG - ALL CAPACITY BUILDING | C15: CB | D15: 12768 | E15: 7308 | F15: 0.4838709677 | H15: 1451 | I15: 552 | J15: 38.04272915 | K15: -10.9 | L15: 3429 | M15: 1590 | N15: 46.36920385 | O15: -2.03079615 | P15: 9027 | Q15: 4928 | R15: 54.59178021 | S15: 6.191780215
B16: Thornton High School | C16: SC | D16: 412 | E16: 320 | F16: 0.7766990291 | H16: 39 | I16: 26 | J16: 0.6666666667 | K16: -11.00323625 | L16: 112 | M16: 85 | N16: 0.7589285714 | O16: -1.77704577 | P16: 252 | Q16: 186 | R16: 0.7380952381 | S16: -3.860379103
B17: Adams City High School | C17: SC | D17: 385 | E17: 272 | F17: 0.7064935065 | H17: 49 | I17: 29 | J17: 0.5918367347 | K17: -11.46567718 | L17: 128 | M17: 74 | N17: 0.578125 | O17: -12.83685065 | P17: 363 | Q17: 258 | R17: 0.7107438017 | S17: 0.4250295159
B18: Hidden Lake High School | C18: CB | D18: 112 | E18: 34 | F18: 0.3035714286 | H18: 12 | I18: 2 | J18: 0.1666666667 | K18: -13.69047619 | L18: 37 | M18: 13 | N18: 0.3513513514 | O18: 4.777992278 | P18: 95 | Q18: 28 | R18: 0.2947368421 | S18: -0.8834586466
B19: Aurora Central High School | C19: SC | D19: 616 | E19: 224 | F19: 0.3636363636 | H19: 76 | I19: 17 | J19: 0.2236842105 | K19: -13.99521531 | L19: 321 | M19: 91 | N19: 0.2834890966 | O19: -8.014726706 | P19: 542 | Q19: 200 | R19: 0.36900369 | S19: 0.5367326401
B20: Greeley Central High School | C20: CB | D20: 373 | E20: 296 | F20: 0.7935656836 | H20: 54 | I20: 35 | J20: 0.6481481481 | K20: -14.54175355 | L20: 66 | M20: 56 | N20: 0.8484848485 | O20: 5.491916484 | P20: 240 | Q20: 176 | R20: 0.7333333333 | S20: -6.023235031
B21: Gateway High School | C21: SC | D21: 441 | E21: 252 | F21: 0.5714285714 | H21: 58 | I21: 21 | J21: 0.3620689655 | K21: -20.93596059 | L21: 120 | M21: 53 | N21: 0.4416666667 | O21: -12.97619048 | P21: 315 | Q21: 173 | R21: 0.5492063492 | S21: -2.222222222
B22: Northglenn High School | C22: SC | D22: 384 | E22: 282 | F22: 0.734375 | H22: 42 | I22: 22 | J22: 0.5238095238 | K22: -21.05654762 | L22: 120 | M22: 86 | N22: 0.7166666667 | O22: -1.770833333 | P22: 204 | Q22: 143 | R22: 0.7009803922 | S22: -3.339460784
B23: Mapleton Expeditionary | C23: SC | D23: 65 | E23: 51 | F23: 0.7846153846 | H23: 7 | I23: 4 | J23: 0.5714285714 | K23: -21.31868132 | L23: 14 | M23: 10 | N23: 0.7142857143 | O23: -7.032967033 | P23: 42 | Q23: 31 | R23: 0.7380952381 | S23: -4.652014652
B24: AVG - ALL SYSTEMS CHANGE | C24: SC | D24: 4648 | E24: 2814 | F24: 0.6054216867 | H24: 520 | I24: 199 | J24: 38.26923077 | K24: -22.2 | L24: 1299 | M24: 641 | N24: 49.3456505 | O24: -11.2 | P24: 3406 | Q24: 1938 | R24: 56.89958896 | S24: -3.600411039
B25: John F Kennedy High School | C25: CB | D25: 284 | E25: 223 | F25: 0.7852112676 | H25: 54 | I25: 30 | J25: 0.5555555556 | K25: -22.96557121 | L25: 24 | M25: 15 | N25: 0.625 | O25: -16.02112676 | P25: 200 | Q25: 153 | R25: 0.765 | S25: -2.021126761
B26: Jefferson High School | C26: SC | D26: 114 | E26: 80 | F26: 0.701754386 | H26: 18 | I26: 8 | J26: 0.4444444444 | K26: -25.73099415 | L26: 48 | M26: 37 | N26: 0.7708333333 | O26: 6.907894737 | P26: 110 | Q26: 79 | R26: 0.7181818182 | S26: 1.642743222
B27: Northridge High School | C27: CB | D27: 237 | E27: 186 | F27: 0.7848101266 | H27: 32 | I27: 16 | J27: 0.5 | K27: -28.48101266 | L27: 42 | M27: 34 | N27: 0.8095238095 | O27: 2.471368294 | P27: 158 | Q27: 117 | R27: 0.7405063291 | S27: -4.430379747
B28: Rangeview High School | C28: SC | D28: 593 | E28: 430 | F28: 0.7251264755 | H28: 58 | I28: 25 | J28: 0.4310344828 | K28: -29.40919928 | L28: 73 | M28: 47 | N28: 0.6438356164 | O28: -8.129085911 | P28: 327 | Q28: 217 | R28: 0.6636085627 | S28: -6.151791286
B29: Fort Lupton High School | C29: CB | D29: 157 | E29: 118 | F29: 0.7515923567 | H29: 18 | I29: 8 | J29: 0.4444444444 | K29: -30.71479122 | L29: 53 | M29: 43 | N29: 0.8113207547 | O29: 5.972839803 | P29: 104 | Q29: 76 | R29: 0.7307692308 | S29: -2.082312592
B30: West High School | C30: SC | D30: 189 | E30: 117 | F30: 0.619047619 | H30: 24 | I30: 7 | J30: 0.2916666667 | K30: -32.73809524 | L30: 43 | M30: 27 | N30: 0.6279069767 | O30: 0.8859357697 | P30: 176 | Q30: 108 | R30: 0.6136363636 | S30: -0.5411255411
B31: Overland High School | C31: CB | D31: 514 | E31: 409 | F31: 0.7957198444 | H31: 65 | I31: 29 | J31: 0.4461538462 | K31: -34.95659982 | L31: 93 | M31: 72 | N31: 0.7741935484 | O31: -2.152629597 | P31: 359 | Q31: 284 | R31: 0.791086351 | S31: -0.4633493383
B32: Wasson High School | C32: SC | D32: 217 | E32: 157 | F32: 0.7235023041 | H32: 19 | I32: 7 | J32: 0.3684210526 | K32: -35.50812515 | L32: 21 | M32: 12 | N32: 0.5714285714 | O32: -15.20737327 | P32: 136 | Q32: 88 | R32: 0.6470588235 | S32: -7.644348062
B33: Hinkley High School | C33: SC | D33: 552 | E33: 311 | F33: 0.5634057971 | H33: 58 | I33: 10 | J33: 0.1724137931 | K33: -39.0992004 | L33: 208 | M33: 83 | N33: 0.3990384615 | O33: -16.43673356 | P33: 460 | Q33: 255 | R33: 0.5543478261 | S33: -0.9057971014
B34: Pueblo East High School | C34: SC | D34: 219 | E34: 150 | F34: 0.6849315068 | H34: 24 | I34: 7 | J34: 0.2916666667 | K34: -39.32648402 | L34: 27 | M34: 17 | N34: 0.6296296296 | O34: -5.530187722 | P34: 170 | Q34: 106 | R34: 0.6235294118 | S34: -6.140209508
B37: Grand Total - All CGP schools | D37: 8120 | E37: 4494 | F37: 55.34482759 | H37: 931 | I37: 353 | J37: 37.91621912 | K37: -17.4 | L37: 2130 | M37: 949 | N37: 44.55399061 | O37: -10.7 | P37: 5621 | Q37: 2990 | R37: 53.19338196 | S37: -2.151445626
B39: Totals - All Non CGP schools | D39: 52765 | E39: 41385 | F39: 78.43267317 | H39: 4844 | I39: 2746 | J39: 56.68868704 | K39: -21.7 | L39: 4041 | M39: 2340 | N39: 57.9064588 | O39: -20.5 | P39: 20097 | Q39: 12801 | R39: 63.69607404 | S39: -14.73659913
B42: Fort Morgan High School * | C42: CB | D42: 233 | E42: 165 | F42: 70.81545064 | H42: 14 | I42: 6 | J42: 0.4285714286 | K42: -27.9 | L42: 68 | M42: 34 | N42: 0.5 | O42: -20.8 | P42: 143 | Q42: 96 | R42: 0.6713286713 | S42: -3.7
B43: Westminster High School * | C43: CB | D43: 462 | E43: 317 | F43: 68.61471861 | H43: 53 | I43: 24 | J43: 0.4528301887 | K43: -23.3 | L43: 201 | M43: 134 | N43: 0.6666666667 | O43: -1.9 | P43: 357 | Q43: 242 | R43: 0.6778711485 | S43: -0.8
B45: * schools not added to CGP cohort until year 2 of the 5-year grant

Sheet 3a - Grad Rates by IPST Y2Y
B1: Table 3a - 2010-11 and 2011-12 Graduation Rates by Select Instructional Program Types
E3: All Students | I3: Students with Disablities | M3: Limited English Proficient | Q3: Economically Disadvantaged
B4: Name of High School | C4: Site Type | E4: Class of 2011 Grad. Rate | F4: Class of 2012 Grad. Rate | G4: Percentage Point Change - '11 to '12 | I4: Class of 2011 Grad. Rate | J4: Class of 2012 Grad. Rate | K4: Percentage Point Change - '11 to '12 | M4: Class of 2011 Grad. Rate | N4: Class of 2012 Grad. Rate | O4: Percentage Point Change - '11 to '12 | Q4: Class of 2011 Grad. Rate | R4: Class of 2012 Grad. Rate | S4: Percentage Point Change - '11 to '12
B6: Mapleton Expeditionary | C6: SC | E6: 61.7 | F6: 78.46153846 | G6: =F6-E6 -> 16.76153846 | I6: 33.3 | J6: 57.14285714 | K6: =J6-I6 -> 23.84285714 | M6: 73.7 | N6: 71.42857143 | O6: =N6-M6 -> -2.271428571 | Q6: 69.2 | R6: 73.80952381 | S6: =R6-Q6 -> 4.60952381
B7: Wasson High School | C7: SC | E7: 58.3 | F7: 72.35023041 | G7: 14.05023041 | I7: 20 | J7: 36.84210526 | K7: 16.84210526 | M7: 42.9 | N7: 57.14285714 | O7: 14.24285714 | Q7: 49.7 | R7: 64.70588235 | S7: 15.00588235
B8: Brady Exploration School | C8: SC | E8: 17 | F8: 26.38888889 | G8: 9.388888889 | I8: 0 | J8: 27.77777778 | K8: 27.77777778 | M8: 9.1 | N8: 15.38461538 | O8: 6.284615385 | Q8: 18.6 | R8: 22.03389831 | S8: 3.433898305
B9: Vantage Point | C9: CB | E9: 22.1 | F9: 31.0483871 | G9: 8.948387097 | I9: 15.4 | J9: 33.33333333 | K9: 17.93333333 | M9: 23.8 | N9: 36.36363636 | O9: 12.56363636 | Q9: 20.4 | R9: 28.18791946 | S9: 7.787919463
B10: West High School | C10: SC | E10: 53 | F10: 61.9047619 | G10: 8.904761905 | I10: 42.1 | J10: 29.16666667 | K10: -12.93333333 | M10: 40 | N10: 62.79069767 | O10: 22.79069767 | Q10: 55.7 | R10: 61.36363636 | S10: 5.663636364
B11: Thornton High School | C11: SC | E11: 68.9 | F11: 77.66990291 | G11: 8.769902913 | I11: 39.5 | J11: 66.66666667 | K11: 27.16666667 | M11: 62.9 | N11: 75.89285714 | O11: 12.99285714 | Q11: 67 | R11: 73.80952381 | S11: 6.80952381
B12: Jefferson High School | C12: SC | E12: 62.1 | F12: 70.1754386 | G12: 8.075438596 | I12: 47.6 | J12: 44.44444444 | K12: -3.155555556 | M12: 65.3 | N12: 77.08333333 | O12: 11.78333333 | Q12: 65.8 | R12: 71.81818182 | S12: 6.018181818
B13: Northridge High School | C13: CB | E13: 73.2 | F13: 78.48101266 | G13: 5.281012658 | I13: 47.5 | J13: 50 | K13: 2.5 | M13: 63.6 | N13: 80.95238095 | O13: 17.35238095 | Q13: 63.8 | R13: 74.05063291 | S13: 10.25063291
B14: Greeley Central High School | C14: CB | E14: 74.4 | F14: 79.35656836 | G14: 4.956568365 | I14: 56.5 | J14: 64.81481481 | K14: 8.314814815 | M14: 72.9 | N14: 84.84848485 | O14: 11.94848485 | Q14: 69.3 | R14: 73.33333333 | S14: 4.033333333
B15: Rangeview High School | C15: SC | E15: 67.9 | F15: 72.51264755 | G15: 4.612647555 | I15: 45.1 | J15: 43.10344828 | K15: -1.996551724 | M15: 55.8 | N15: 64.38356164 | O15: 8.583561644 | Q15: 62.2 | R15: 66.36085627 | S15: 4.160856269
B16: Adams City High School | C16: SC | E16: 68 | F16: 70.64935065 | G16: 2.649350649 | I16: 39 | J16: 59.18367347 | K16: 20.18367347 | M16: 64.6 | N16: 57.8125 | O16: -6.7875 | Q16: 68.8 | R16: 71.07438017 | S16: 2.274380165
B17: R-5 High School | C17: CB | E17: 27.3 | F17: 29.55974843 | G17: 2.259748428 | I17: 12.5 | J17: 23.80952381 | K17: 11.30952381 | M17: 50 | N17: 30.76923077 | O17: -19.23076923 | Q17: 25.5 | R17: 28.57142857 | S17: 3.071428571
B18: AVG - ALL SYSTEMS CHANGE | C18: SC | E18: 58.70362821 | F18: 60.54216867 | G18: 1.838540464 | I18: 33.984375 | J18: 38.26923077 | K18: 4.284855769 | M18: 49.76780186 | N18: 49.3456505 | O18: -0.4221513572 | Q18: 56.13701237 | R18: 56.89958896 | S18: 0.7625765915
B19: Fort Lupton High School | C19: CB | E19: 74 | F19: 75.15923567 | G19: =F19-E19 -> 1.159235669 | I19: 46.2 | J19: 44.44444444 | K19: =J19-I19 -> -1.755555556 | M19: 69.2 | N19: 81.13207547 | O19: =N19-M19 -> 11.93207547 | Q19: 76.8 | R19: 73.07692308 | S19: =R19-Q19 -> -3.723076923
B20: John F Kennedy High School | C20: CB | E20: 77.4 | F20: 78.52112676 | G20: =F20-E20 -> 1.121126761 | I20: 44.4 | J20: 55.55555556 | K20: =J20-I20 -> 11.15555556 | M20: 70.6 | N20: 62.5 | O20: =N20-M20 -> -8.1 | Q20: 76.4 | R20: 76.5 | S20: =R20-Q20 -> 0.1
B21: Gateway High School | C21: SC | E21: 56.1 | F21: 57.14285714 | G21: =F21-E21 -> 1.042857143 | I21: 22 | J21: 36.20689655 | K21: =J21-I21 -> 14.20689655 | M21: 48.5 | N21: 44.16666667 | O21: =N21-M21 -> -4.333333333 | Q21: 52 | R21: 54.92063492 | S21: =R21-Q21 -> 2.920634921
B22: AVG - ALL CAPACITY BUILDING | C22: CB | E22: 47.4 | F22: 48.4 | G22: 1 | I22: 40.7 | J22: 37.5 | K22: -3.2 | M22: 32.8 | N22: 37.1 | O22: 4.3 | Q22: 51.5 | R22: 47.5 | S22: -4
B23: New America School - Aurora | C23: CB | E23: 6.8 | F23: 7.784431138 | G23: =F23-E23 -> 0.9844311377 | I23: 0 | J23: 0 | K23: =J23-I23 -> 0 | M23: 5.8 | N23: 6.761565836 | O23: =N23-M23 -> 0.9615658363 | Q23: 6.9 | R23: 7.96812749 | S23: =R23-Q23 -> 1.06812749
B24: Overland High School | C24: CB | E24: 78.6 | F24: 79.57198444 | G24: 0.9719844358 | I24: 60.3 | J24: 44.61538462 | K24: -15.68461538 | M24: 74.4 | N24: 77.41935484 | O24: 3.019354839 | Q24: 79.9 | R24: 79.1086351 | S24: -0.7913649025
B25: New America School - Mapleton | C25: CB | E25: 18.6 | F25: 18.96551724 | G25: 0.3655172414 | I25: 50 | J25: 8.333333333 | K25: -41.66666667 | M25: 17.2 | N25: 17.91044776 | O25: 0.7104477612 | Q25: 23.4 | R25: 18.12080537 | S25: -5.279194631
B26: Hidden Lake High School | C26: CB | E26: 30 | F26: 30.35714286 | G26: 0.3571428571 | I26: 16.7 | J26: 16.66666667 | K26: -0.03333333333 | M26: 26.3 | N26: 35.13513514 | O26: 8.835135135 | Q26: 31.2 | R26: 29.47368421 | S26: -1.726315789
B27: Colorado Virtual Academy | C27: CB | E27: 21.6 | F27: 21.4893617 | G27: -0.1106382979 | I27: 25 | J27: 13.79310345 | K27: -11.20689655 | M27: 11.1 | N27: 5.882352941 | O27: -5.217647059 | Q27: 12.8 | R27: 14.70588235 | S27: 1.905882353
B28: Northglenn High School | C28: SC | E28: 74.7 | F28: 73.4375 | G28: -1.2625 | I28: 55.3 | J28: 52.38095238 | K28: -2.919047619 | M28: 72.4 | N28: 71.66666667 | O28: -0.7333333333 | Q28: 72 | R28: 70.09803922 | S28: -1.901960784
B29: Mc Lain High School | C29: CB | E29: 31.4 | F29: 29.91071429 | G29: -1.489285714 | I29: 26.7 | J29: 26.92307692 | K29: 0.2230769231 | M29: 11.1 | N29: 9.090909091 | O29: -2.009090909 | Q29: 25.5 | R29: 24.78632479 | S29: -0.7136752137
B30: Montezuma-Cortez High School | C30: SC | E30: 67.3 | F30: 65.60509554 | G30: -1.694904459 | I30: 56 | J30: 62.5 | K30: 6.5 | M30: 55.6 | N30: 41.17647059 | O30: -14.42352941 | Q30: 59.2 | R30: 58.42696629 | S30: -0.7730337079
B31: Hinkley High School | C31: SC | E31: 58.5 | F31: 56.34057971 | G31: -2.15942029 | I31: 31.6 | J31: 17.24137931 | K31: -14.35862069 | M31: 44 | N31: 39.90384615 | O31: -4.096153846 | Q31: 57.4 | R31: 55.43478261 | S31: -1.965217391
B32: Skyview Academy High School | C32: CB | E32: 75 | F32: 72.46376812 | G32: -2.536231884 | I32: 33.3 | J32: 66.66666667 | K32: 33.36666667 | M32: 78.1 | N32: 63.63636364 | O32: -14.46363636 | Q32: 75.8 | R32: 71.42857143 | S32: -4.371428571
B33: Colorado's Finest Alt. High School | C33: SC | E33: 20.4 | F33: 16.875 | G33: -3.525 | I33: 0 | J33: 7.142857143 | K33: 7.142857143 | M33: 0 | N33: 25 | O33: 25 | Q33: 21 | R33: 15.68627451 | S33: -5.31372549
B34: Pueblo East High School | C34: SC | E34: 73.1 | F34: 68.49315068 | G34: -4.606849315 | I34: 12 | J34: 29.16666667 | K34: 17.16666667 | M34: 42.9 | N34: 62.96296296 | O34: 20.06296296 | Q34: 66.7 | R34: 62.35294118 | S34: -4.347058824
B35: Aurora Central High School | C35: SC | E35: 43 | F35: 36.36363636 | G35: -6.636363636 | I35: 27.8 | J35: 22.36842105 | K35: -5.431578947 | M35: 34 | N35: 28.34890966 | O35: -5.651090343 | Q35: 44.5 | R35: 36.900369 | S35: -7.599630996
B36: Grand Mesa High School | C36: CB | E36: 17.9 | F36: 11.11111111 | G36: -6.788888889 | I36: 11.1 | J36: 10 | K36: -1.1 | M36: 0 | N36: 0 | O36: 0 | Q36: 0 | R36: 14.28571429 | S36: 14.28571429
B38: Grand Total - All CGP Schools | E38: 54 | F38: 55.3 | G38: =F38-E38 -> 1.3 | I38: 36.6 | J38: 37.9 | K38: =J38-I38 -> 1.3 | M38: 43.9 | N38: 44.6 | O38: =N38-M38 -> 0.7 | Q38: 54.4 | R38: 53.2 | S38: =R38-Q38 -> -1.2
B40: Totals - All Non-CGP Schools | E40: 77 | F40: 78.4 | G40: 1.4 | I40: 56.4 | J40: 56.7 | K40: 0.3 | M40: 58 | N40: 57.9 | O40: -0.1 | Q40: 64.4 | R40: 63.7 | S40: -0.7
B43: Schools added to the CGP cohort in year 2 (2011-12 is the baseline year for these schools)
B44: Fort Morgan High School * | C44: CB | E44: 69.4 | F44: 70.81545064 | G44: =F44-E44 -> 1.415450644 | I44: 47.4 | J44: 42.85714286 | K44: =J44-I44 -> -4.542857143 | M44: 56.3 | N44: 50 | O44: =N44-M44 -> -6.3 | Q44: 63.3 | R44: 67.13286713 | S44: =R44-Q44 -> 3.832867133
B45: Westminster High School * | C45: CB | E45: 72.4 | F45: 68.61471861 | G45: =F45-E45 -> -3.785281385 | I45: 37.2 | J45: 45.28301887 | K45: =J45-I45 -> 8.083018868 | M45: 66.7 | N45: 66.66666667 | O45: =N45-M45 -> -0.03333333333 | Q45: 69.7 | R45: 67.78711485 | S45: =R45-Q45 -> -1.912885154
B47: * schools not added to CGP cohort until year 2 of the 5-year grant

Sheet 9 - Attendance & Truancy
B2: Table 9 - 2011-12 Attendance Rates by HSGI School
B4: District | C4: School Code | D4: Name of High School | E4: Site Type | F4: Student Fall Enrollment | G4: Total Days Possible Attendence for all Students | H4: Total Days Attended for all Students | I4: Total Student Days Excused Absence for all Students | J4: Total Student Days Unexcused Absent for all Students | K4: Attendance Rate (Total Student Days Attended/Total Days Possible) | L4: Truancy Rate (Total Student Days Unexcused Absent/Total days Possible)
B6: WELD COUNTY S/D RE-8 | C6: 3070 | D6: Fort Lupton High School | E6: CB | F6: 584 | G6: 93094 | H6: 90033.6 | I6: 1264.8 | J6: 1795.6 | K6: 0.9671257009 | L6: 0.01928803145
B7: ADAMS-ARAPAHOE 28J | C7: 7250 | D7: Rangeview High School | E7: SC | F7: 2197 | G7: 365188 | H7: 347439.1 | I7: 9718.5 | J7: 8030.4 | K7: 0.9513979101 | L7: 0.02198976965
B8: PUEBLO CITY 60 | C8: 2394 | D8: East High School | E8: SC | F8: 956 | G8: 162179 | H8: 151976.2 | I8: 3401.6 | J8: 6801.2 | K8: 0.9370892656 | L8: 0.04193637894
B9: COLORADO SPRINGS 11 | C9: 9298 | D9: Wasson High School | E9: SC | F9: 996 | G9: 15729.8 | H9: 14620.8 | I9: 555.1 | J9: 553.9 | K9: 0.9294968785 | L9: 0.03521341657
B10: ADAMS-ARAPAHOE 28J | C10: 4024 | D10: Hinkley High School | E10: SC | F10: 2054 | G10: 327382 | H10: 302710.3 | I10: 8772.6 | J10: 15899.1 | K10: 0.9246394121 | L10: 0.04856436823
B11: ADAMS-ARAPAHOE 28J | C11: 3354 | D11: Gateway High School | E11: SC | F11: 1665 | G11: 267752 | H11: 246337.3 | I11: 6879.4 | J11: 14535.3 | K11: 0.920020392 | L11: 0.05428642923
B12: MAPLETON 1 | C12: 0187 | D12: Mapleton Expeditionary | E12: SC | F12: 556 | G12: 88217 | H12: 80576.5 | I12: 3991 | J12: 3649.5 | K12: 0.9133897095 | L12: 0.04136957729
B13: PLATEAU VALLEY 50 | C13: 3582 | D13: Grand Mesa High School | E13: CB | F13: 136 | G13: 34408 | H13: 31144 | I13: 3264 | J13: 0 | K13: 0.9051383399 | L13: 0
B14: GREELEY 6 | C14: 3610 | D14: Greeley Central High School | E14: CB | F14: 1410 | G14: 237329 | H14: 213638.6 | I14: 10077.3 | J14: 13613.1 | K14: 0.9001790763 | L14: 0.05735961471
B15: MAPLETON 1 | C15: 0309 | D15: Skyview Academy H.S. | E15: CB | F15: 300 | G15: 49973 | H15: 44693.5 | I15: 2379 | J15: 2900.5 | K15: 0.8943529506 | L15: 0.05804134232
B16: ADAMS-ARAPAHOE 28J | C16: 1458 | D16: Aurora Central High School | E16: SC | F16: 2235 | G16: 352634 | H16: 314808 | I16: 5890.8 | J16: 31935.2 | K16: 0.8927329753 | L16: 0.09056188569
B17: ADAMS 12 FIVE STAR SCHOOLS | C17: 6402 | D17: Northglenn High School | E17: SC | F17: 1731 | G17: 292888.4 | H17: 258674 | I17: 14840.4 | J17: 19374 | K17: 0.8831828096 | L17: 0.06614806186
B18: DENVER COUNTY 1 | C18: 4444 | D18: John F Kennedy High School | E18: CB | F18: 1197 | G18: 197836 | H18: 174228.8 | I18: 10676.2 | J18: 12931 | K18: 0.8806728806 | L18: 0.06536221921
B19: WESTMINSTER 50 | C19: 3931 | D19: Hidden Lake High School | E19: CB | F19: 260 | G19: 42715 | H19: 37286.8 | I19: 877.1 | J19: 4551.1 | K19: 0.8729205197 | L19: 0.1065457099
B20: GREELEY 6 | C20: 6364 | D20: Northridge High School | E20: CB | F20: 1029 | G20: 167485 | H20: 145619.6 | I20: 8679.8 | J20: 13185.6 | K20: 0.8694486073 | L20: 0.07872705018
B21: MONTEZUMA-CORTEZ RE-1 | C21: 6026 | D21: Montezuma-Cortez H.S. | E21: SC | F21: 679 | G21: 894788 | H21: 769878 | I21: 65584 | J21: 59326 | K21: 0.8604026876 | L21: 0.06630173851
B22: ADAMS COUNTY 14 | C22: 0024 | D22: Adams City High School | E22: SC | F22: 1689 | G22: 294083 | H22: 252696.5 | I22: 13805.5 | J22: 27581 | K22: 0.8592693219 | L22: 0.09378644804
B23: CHERRY CREEK 5 | C23: 6625 | D23: Overland High School | E23: CB | F23: 2248 | G23: 382010.6 | H23: 328189.7 | I23: 17913.1 | J23: 35907.8 | K23: 0.8591115011 | L23: 0.09399686815
B24: JEFFERSON COUNTY R-1 | C24: 0033 | D24: Mc Lain High School | E24: CB | F24: 385 | G24: 57295 | H24: 49163.6 | I24: 4055.5 | J24: 4075.9 | K24: 0.8580783663 | L24: 0.07113884283
B25: ADAMS 12 FIVE STAR SCHOOLS | C25: 5816 | D25: Thornton High School | E25: SC | F25: 1713 | G25: 294783.5 | H25: 251598 | I25: 15167.2 | J25: 28018.3 | K25: 0.8535009592 | L25: 0.095047043
B26: ADAMS 12 FIVE STAR SCHOOLS | C26: 0210 | D26: Vantage Point | E26: CB | F26: 526 | G26: 49522.4 | H26: 42088 | I26: 4311.1 | J26: 3123.3 | K26: 0.849878035 | L26: 0.06306842964
B27: DENVER COUNTY 1 | C27: 9408 | D27: West High School | E27: SC | F27: 700 | G27: 111765 | H27: 94054.5 | I27: 3381.9 | J27: 14328.6 | K27: 0.8415380486 | L27: 0.1282029258
B28: JEFFERSON COUNTY R-1 | C28: 4422 | D28: Jefferson High School | E28: SC | F28: 595 | G28: 95397 | H28: 78344.3 | I28: 3336.8 | J28: 13715.9 | K28: 0.8212449029 | L28: 0.143777058
B29: ENGLEWOOD 1 | C29: 0206 | D29: Colorado's Finest Alt. HS | E29: SC | F29: 335 | G29: 52768 | H29: 42673 | I29: 7495 | J29: 2600 | K29: 0.8086908733 | L29: 0.04927228623
B30: ADAMS-ARAPAHOE 28J | C30: 6219 | D30: New America - Aurora | E30: CB | F30: 531 | G30: 77320 | H30: 57893.4 | I30: 1062.7 | J30: 18363.9 | K30: 0.7487506467 | L30: 0.2375051733
B31: JEFFERSON COUNTY R-1 | C31: 0965 | D31: Brady Exploration School | E31: SC | F31: 286 | G31: 39042 | H31: 25962.5 | I31: 5212.6 | J31: 7866.9 | K31: 0.6649889862 | L31: 0.2014983864
B32: MESA COUNTY VALLEY 51 | C32: 7236 | D32: R-5 High School | E32: CB | F32: 244 | G32: 43452 | H32: 28609.8 | I32: 2953 | J32: 11889.2 | K32: 0.6584230875 | L32: 0.2736168646
B33: MAPLETON 1 | C33: 4699 | D33: New America - Mapleton | E33: CB | F33: 412 | G33: 44166 | H33: 27324 | I33: 3941.5 | J33: 12900.5 | K33: 0.6186659421 | L33: 0.2920912014
D35: Totals | F35: 27649 | G35: 5131202.7 | H35: 4502262.4 | I35: 239487.5 | J35: 389452.8 | K35: 0.8774282879 | L35: 0.07589893106
B39: Not included in the aggregated calculation due to online status
B40: ADAMS 12 FIVE STAR SCHOOLS | C40: 1752 | D40: Colorado Virtual Academy | E40: CB | F40: 5013 | G40: 90735.3 | H40: 90735.3 | I40: 0 | J40: 0 | K40: 1 | L40: 0
B44: FORT MORGAN | C44: FORT MORGAN RE-3 | D44: Fort Morgan High School * | E44: CB | F44: 910 | G44: 146344 | H44: 141367.5 | I44: 2779.1 | J44: 2197.4 | K44: 0.9659945061 | L44: 0.0150153064
B45: WESTMINSTER 50 | C45: WESTMINSTER 50 | D45: Westminster High School * | E45: CB | F45: 2366 | G45: 382892 | H45: 347837.6 | I45: 9434.7 | J45: 25619.7 | K45: 0.9084483353 | L45: 0.06691103497
D47: * schools not added to CGP cohort until year 2 of the 5-year grant
